[Event "29th Czech Open-Rapid 2018"]
[Site "Pardubice"]
[Date "2018.07.18"]
[Round "2"]
[White "Shkuran, Daniil"]
[Black "Tarun V Kanth"]
[Result "1-0"]
[ECO "C15"]
[WhiteElo "2404"]
[BlackElo "2086"]
[Annotator "NA"]
[PlyCount "59"]
[EventDate "2018.07.18"]
[EventType "swiss"]
[EventCountry "CZE"]
[SourceTitle "playchess.com"]
[Source "ChessBase"]
[SourceQuality "1"]
[TimeControl "900+10"]

1. e4 {[%emt 0:00:00]} e6 {[%emt 0:00:00]} 2. d4 {[%emt 0:00:01]} d5 {[%emt 0:00:00]} 3. Nc3 {[%emt 0:00:01]} Bb4 {[%emt 0:00:00]} 4. Nge2 {[%emt 0:00:01]} dxe4 {[%emt 0:00:00]} 5. a3 {[%emt 0:00:01]} Be7 {[%emt 0:00:34]} 6. Nxe4 {[%emt 0:00:03]} Nf6 {[%emt 0:00:01]} 7. N2c3 {[%emt 0:00:23]} Nxe4 {[%emt 0:00:26]} 8. Nxe4 {[%emt 0:00:02]} Nc6 {[%emt 0:00:22]} 9. c3 {[%emt 0:00:49]} O-O {[%emt 0:01:09]} 10. Bc4 {[%emt 0:00:20]} b6 {[%emt 0:00:30]} 11. O-O Bb7 12. Re1 {[%emt 0:02:52]} Na5 {[%emt 0:00:23]} 13. Bd3 {[%emt 0:00:17]} Qd5 {[%emt 0:00:19]} 14. b4 {[%emt 0:01:29]} Nc4 {[%emt 0:02:39]} 15. f3 {[%emt 0:01:17]} Nd6 {[%emt 0:00:17]} 16. Bf4 {[%emt 0:02:55]} Qh5 {[%emt 0:02:22]} 17. Ng3 {[%emt 0:01:35]} Qh4 {[%emt 0:00:02]} 18. Qd2 {[%emt 0:00:02]} Bd5 {[%emt 0:00:14]} 19. Re5 {[%emt 0:03:50]} g6 {[%emt 0:00:46]} 20. Ne4 {[%emt 0:00:17]} Bxe4 {[%emt 0:01:09]} 21. fxe4 {[%emt 0:01:26]} Bd8 {[%emt 0:02:58]} 22. Rf1 {[%emt 0:00:31]} Qe7 {[%emt 0:00:46]} 23. d5 {[%emt 0:00:01]} Qd7 {[%emt 0:00:41]} 24. dxe6 {[%emt 0:00:20]} fxe6 {[%emt 0:00:01]} 25. Bc4 {[%emt 0:00:01]} Re8 {[%emt 0:00:02]} 26. Bh6 {[%emt 0:00:10]} Bf6 {[%emt 0:01:22]} 27. Rxf6 {[%emt 0:00:04]} Qe7 {[%emt 0:00:01]} 28. Rfxe6 {[%emt 0:00:14]} Nxc4 {[%emt 0:00:19]} 29. Rxe7 {[%emt 0:00:03]} Rxe7 {[%emt 0:00:00]} 30. Qd5+ {[%emt 0:00:04]} 1-0

[Event "29th Czech Open-Rapid 2018"]
[Site "Pardubice"]
[Date "2018.07.18"]
[Round "2"]
[White "Grekh, Andrey"]
[Black "Barak, Gil"]
[Result "1-0"]
[ECO "C44"]
[WhiteElo "2400"]
[BlackElo "1993"]
[Annotator "NA"]
[PlyCount "43"]
[EventDate "2018.07.18"]
[EventType "swiss"]
[EventCountry "CZE"]
[SourceTitle "playchess.com"]
[Source "ChessBase"]
[SourceQuality "1"]
[TimeControl "900+10"]

1. e4 {[%emt 0:00:00]} e5 {[%emt 0:00:00]} 2. Nf3 {[%emt 0:00:00]} Nc6 {[%emt 0:00:00]} 3. d4 {[%emt 0:00:00]} exd4 {[%emt 0:00:00]} 4. c3 {[%emt 0:00:00]} dxc3 {[%emt 0:00:14]} 5. Nxc3 {[%emt 0:00:00]} Bb4 {[%emt 0:00:20]} 6. Bc4 {[%emt 0:00:00]} Nf6 {[%emt 0:00:24]} 7. e5 {[%emt 0:00:17]} d5 {[%emt 0:00:26]} 8. exf6 {[%emt 0:00:10]} dxc4 {[%emt 0:00:02]} 9. Qxd8+ {[%emt 0:00:02]} Nxd8 {[%emt 0:00:13]} 10. fxg7 {[%emt 0:00:02]} Rg8 {[%emt 0:00:02]} 11. Bh6 {[%emt 0:00:02]} Bf5 {[%emt 0:00:44]} 12. O-O-O {[%emt 0:00:29]} Ne6 {[%emt 0:00:35]} 13. Nd5 {[%emt 0:00:35]} Be7 {[%emt 0:00:31]} 14. Nd4 {[%emt 0:02:23]} Nxd4 {[%emt 0:04:17]} 15. Rxd4 {[%emt 0:00:02]} Rc8 {[%emt 0:01:03]} 16. Re1 {[%emt 0:03:11]} Be6 {[%emt 0:00:09]} 17. Nxe7 {[%emt 0:01:02]} Kxe7 {[%emt 0:00:02]} 18. Bg5+ {[%emt 0:00:07]} f6 {[%emt 0:00:17]} 19. Rde4 {[%emt 0:00:02]} fxg5 {[%emt 0:00:04]} 20. Rxe6+ {[%emt 0:00:01]} Kf7 {[%emt 0:00:39]} 21. Re7+ {[%emt 0:00:01]} Kf6 {[%emt 0:00:12]} 22. g4 {[%emt 0:00:06]} 1-0

[Event "29th Czech Open-Rapid 2018"]
[Site "Pardubice"]
[Date "2018.07.18"]
[Round "2"]
[White "Manik, Mikulas"]
[Black "Annenkov, Kirill"]
[Result "1-0"]
[ECO "B13"]
[WhiteElo "2400"]
[BlackElo "2214"]
[Annotator "NA"]
[PlyCount "63"]
[EventDate "2018.07.18"]
[EventType "swiss"]
[EventCountry "CZE"]
[SourceTitle "playchess.com"]
[Source "ChessBase"]
[SourceQuality "1"]
[TimeControl "900+10"]

1. e4 {[%emt 0:00:00]} c6 {[%emt 0:00:00]} 2. d4 {[%emt 0:00:00]} d5 {[%emt 0:00:00]} 3. exd5 {[%emt 0:00:00]} cxd5 {[%emt 0:00:00]} 4. Bd3 {[%emt 0:00:00]} Nc6 {[%emt 0:00:03]} 5. c3 {[%emt 0:00:00]} Qc7 {[%emt 0:00:05]} 6. h3 {[%emt 0:00:01]} Nf6 {[%emt 0:00:06]} 7. Nf3 {[%emt 0:00:02]} g6 {[%emt 0:00:04]} 8. O-O {[%emt 0:00:03]} Bf5 {[%emt 0:00:04]} 9. Re1 {[%emt 0:00:12]} Bxd3 {[%emt 0:00:12]} 10. Qxd3 {[%emt 0:00:02]} Bg7 {[%emt 0:00:04]} 11. Ne5 {[%emt 0:00:54]} O-O {[%emt 0:01:02]} 12. Bf4 {[%emt 0:00:05]} Qb6 {[%emt 0:01:12]} 13. b3 {[%emt 0:02:24]} Nxe5 {[%emt 0:01:26]} 14. Bxe5 {[%emt 0:00:04]} Rac8 {[%emt 0:00:18]} 15. Nd2 {[%emt 0:00:03]} Rfd8 {[%emt 0:00:20]} 16. a4 {[%emt 0:00:27]} a5 {[%emt 0:01:45]} 17. Rab1 {[%emt 0:00:12]} e6 {[%emt 0:01:14]} 18. Qf3 {[%emt 0:00:15]} Ne8 {[%emt 0:00:34]} 19. Bxg7 {[%emt 0:00:25]} Kxg7 {[%emt 0:00:08]} 20. Re3 {[%emt 0:00:06]} Nd6 {[%emt 0:00:13]} 21. g4 {[%emt 0:01:27]} Rc6 {[%emt 0:00:58]} 22. Qf4 {[%emt 0:00:28]} Qc7 {[%emt 0:00:06]} 23. Rc1 {[%emt 0:00:38]} Rc8 {[%emt 0:00:43]} 24. Rf3 {[%emt 0:03:15]} b5 {[%emt 0:00:50]} 25. axb5 {[%emt 0:00:29]} Nxb5 {[%emt 0:00:06]} 26. Qf6+ {[%emt 0:00:02]} Kg8 {[%emt 0:00:02]} 27. c4 {[%emt 0:00:06]} dxc4 {[%emt 0:02:26]} 28. bxc4 {[%emt 0:00:29]} Qd7 {[%emt 0:00:23]} 29. Ne4 {[%emt 0:00:21]} Nxd4 {[%emt 0:00:19]} 30. Re3 {[%emt 0:00:02]} e5 {[%emt 0:00:15]} 31. Qxe5 {[%emt 0:00:10]} Nf3+ {[%emt 0:00:02]} 32. Rxf3 {[%emt 0:00:02]} 1-0

[Event "29th Czech Open-Rapid 2018"]
[Site "Pardubice"]
[Date "2018.07.18"]
[Round "2"]
[White "Frolov, Artur"]
[Black "Vorobiov, Evgeny E"]
[Result "1/2-1/2"]
[ECO "B36"]
[WhiteElo "2393"]
[BlackElo "2564"]
[Annotator "ChessBase"]
[PlyCount "93"]
[EventDate "2018.07.18"]
[EventType "swiss"]
[EventCountry "CZE"]
[SourceTitle "playchess.com"]
[Source "ChessBase"]
[SourceQuality "1"]
[TimeControl "900+10"]

1. e4 {[%emt 0:00:00]} c5 {[%emt 0:00:00]} 2. Nf3 {[%emt 0:00:00]} g6 {[%emt 0:00:00]} 3. d4 {[%emt 0:00:00]} cxd4 {[%emt 0:00:02]} 4. Nxd4 {[%emt 0:00:00]} Nc6 {[%emt 0:00:03]} 5. c4 {[%emt 0:00:02]} Nf6 {[%emt 0:00:07]} 6. Nc3 {[%emt 0:00:02]} Bg7 {[%emt 0:00:21]} 7. Be3 {[%emt 0:00:02]} O-O {[%emt 0:00:06]} 8. Be2 {[%emt 0:00:16]} d6 {[%emt 0:00:02]} 9. f3 {[%emt 0:01:27]} Nxd4 {[%emt 0:00:12]} 10. Bxd4 {[%emt 0:00:03]} Bd7 {[%emt 0:00:06]} 11. Qd2 {[%emt 0:01:41]} a5 {[%emt 0:00:12]} 12. Rc1 {[%emt 0:01:01]} Bc6 {[%emt 0:00:27]} 13. Nd5 {[%emt 0:00:51]} e6 {[%emt 0:01:48]} 14. Nxf6+ {[%emt 0:00:41]} Bxf6 {[%emt 0:00:03]} 15. Bxf6 {[%emt 0:00:19]} Qxf6 {[%emt 0:00:02]} 16. O-O {[%emt 0:00:03]} Rfd8 {[%emt 0:00:16]} 17. Rfd1 {[%emt 0:00:56]} Qe5 {[%emt 0:00:13]} 18. Qd4 {[%emt 0:00:36]} Qxd4+ {[%emt 0:00:59]} 19. Rxd4 {[%emt 0:00:02]} Kf8 {[%emt 0:00:03]} 20. Kf2 {[%emt 0:00:13]} Ke7 {[%emt 0:00:03]} 21. Ke3 {[%emt 0:00:04]} h5 {[%emt 0:00:39]} 22. c5 {[%emt 0:00:37]} d5 {[%emt 0:01:19]} 23. exd5 {[%emt 0:00:23]} Rxd5 {[%emt 0:00:13]} 24. Rxd5 {[%emt 0:00:13]} Bxd5 {[%emt 0:00:02]} 25. Bc4 {[%emt 0:00:12]} Bc6 {[%emt 0:00:13]} 26. Rc3 {[%emt 0:00:40]} a4 {[%emt 0:01:23]} 27. Ra3 {[%emt 0:00:48]} Rd8 {[%emt 0:00:37]} 28. Rd3 {[%emt 0:00:25]} Rb8 {[%emt 0:00:09]} 29. b4 {[%emt 0:00:12]} axb3 {[%emt 0:00:09]} 30. axb3 {[%emt 0:00:02]} b5 {[%emt 0:00:18]} 31. cxb6 {[%emt 0:00:02]} Rxb6 {[%emt 0:00:01]} 32. h4 {[%emt 0:00:12]} Rb8 {[%emt 0:00:12]} 33. Kd4 {[%emt 0:01:27]} Bd7 {[%emt 0:00:53]} 34. f4 {[%emt 0:00:19]} Bc6 {[%emt 0:02:21]} 35. g3 {[%emt 0:00:02]} Bg2 {[%emt 0:00:03]} 36. Rd2 {[%emt 0:02:19]} Bf3 {[%emt 0:00:13]} 37. Kc3 {[%emt 0:00:16]} Rc8 {[%emt 0:01:27]} 38. Ra2 {[%emt 0:01:10]} Rc7 {[%emt 0:00:17]} 39. Kd4 {[%emt 0:00:09]} Rb7 {[%emt 0:00:15]} 40. Ra5 {[%emt 0:00:19]} Rd7+ {[%emt 0:00:55]} 41. Ke3 {[%emt 0:00:14]} Bh1 {[%emt 0:00:33]} 42. b4 {[%emt 0:00:39]} Rd1 {[%emt 0:00:08]} 43. Ra3 {[%emt 0:00:12]} Bd5 {[%emt 0:01:18]} 44. Bxd5 {[%emt 0:00:10]} exd5 {[%emt 0:00:13]} 45. Rd3 {[%emt 0:00:18]} Rb1 {[%emt 0:00:24]} 46. Rxd5 {[%emt 0:00:02]} Rxb4 47. Rd3 1/2-1/2

[Event "29th Czech Open-Rapid 2018"]
[Site "Pardubice"]
[Date "2018.07.18"]
[Round "2"]
[White "Pulpan, Jakub"]
[Black "Michelle Catherina, P."]
[Result "1/2-1/2"]
[ECO "A46"]
[WhiteElo "2386"]
[BlackElo "2069"]
[Annotator "NA"]
[PlyCount "80"]
[EventDate "2018.07.18"]
[EventType "swiss"]
[EventCountry "CZE"]
[SourceTitle "playchess.com"]
[Source "ChessBase"]
[SourceQuality "1"]
[TimeControl "900+10"]

1. d4 {[%emt 0:00:00]} Nf6 {[%emt 0:00:00]} 2. Nf3 {[%emt 0:00:00]} e6 {[%emt 0:00:00]} 3. c4 {[%emt 0:00:00]} d5 {[%emt 0:00:00]} 4. Bf4 {[%emt 0:00:00]} c5 {[%emt 0:00:56]} 5. e3 {[%emt 0:00:25]} cxd4 {[%emt 0:00:06]} 6. exd4 {[%emt 0:00:03]} Bb4+ {[%emt 0:00:16]} 7. Nbd2 {[%emt 0:00:13]} O-O {[%emt 0:00:11]} 8. c5 {[%emt 0:00:31]} b6 {[%emt 0:04:12]} 9. a3 {[%emt 0:01:18]} Bxd2+ {[%emt 0:00:02]} 10. Qxd2 {[%emt 0:00:10]} Ne4 {[%emt 0:00:49]} 11. Qc2 {[%emt 0:00:03]} Ba6 {[%emt 0:01:21]} 12. Bxa6 {[%emt 0:01:21]} Nxa6 {[%emt 0:00:01]} 13. b4 {[%emt 0:00:02]} bxc5 {[%emt 0:00:40]} 14. dxc5 {[%emt 0:00:07]} f6 {[%emt 0:02:06]} 15. O-O {[%emt 0:00:03]} e5 {[%emt 0:00:13]} 16. Be3 {[%emt 0:00:12]} Nc7 {[%emt 0:00:10]} 17. Rfd1 {[%emt 0:00:10]} Qe8 {[%emt 0:00:20]} 18. Nd2 {[%emt 0:00:44]} f5 {[%emt 0:00:50]} 19. f4 {[%emt 0:00:23]} d4 {[%emt 0:00:35]} 20. Nxe4 {[%emt 0:00:34]} fxe4 {[%emt 0:00:24]} 21. Qxe4 {[%emt 0:00:32]} dxe3 {[%emt 0:00:44]} 22. fxe5 {[%emt 0:00:01]} Qe7 {[%emt 0:01:04]} 23. Qxe3 {[%emt 0:00:06]} Rae8 {[%emt 0:00:07]} 24. c6 {[%emt 0:00:24]} Qxe5 {[%emt 0:01:10]} 25. Qxa7 {[%emt 0:00:10]} Nb5 {[%emt 0:00:39]} 26. Qc5 {[%emt 0:01:26]} Qxc5+ {[%emt 0:00:14]} 27. bxc5 {[%emt 0:00:02]} Rc8 {[%emt 0:00:13]} 28. a4 {[%emt 0:00:14]} Na7 {[%emt 0:00:20]} 29. a5 {[%emt 0:00:30]} Rxc6 {[%emt 0:00:27]} 30. Rd7 {[%emt 0:00:13]} Nb5 {[%emt 0:01:13]} 31. a6 {[%emt 0:00:08]} Rxc5 {[%emt 0:00:19]} 32. a7 {[%emt 0:00:24]} Ra8 {[%emt 0:00:05]} 33. Rb7 {[%emt 0:00:26]} Nd6 {[%emt 0:00:12]} 34. Rb6 {[%emt 0:00:34]} Rc7 {[%emt 0:00:25]} 35. Rb8+ {[%emt 0:01:33]} Rc8 {[%emt 0:00:02]} 36. Rd1 {[%emt 0:00:01]} Nb5 {[%emt 0:00:15]} 37. Rxb5 {[%emt 0:00:42]} Rxa7 {[%emt 0:00:01]} 38. h4 {[%emt 0:00:01]} Rac7 {[%emt 0:00:06]} 39. Kh2 {[%emt 0:00:02]} h6 {[%emt 0:00:07]} 40. g3 {[%emt 0:00:15]} Rc5 {[%emt 0:00:07]} 1/2-1/2

[Event "29th Czech Open-Rapid 2018"]
[Site "Pardubice"]
[Date "2018.07.18"]
[Round "2"]
[White "Biolek-Jun., Richard"]
[Black "Joukl, Zdenek"]
[Result "1-0"]
[ECO "B07"]
[WhiteElo "2364"]
[BlackElo "2029"]
[Annotator "NA RC"]
[PlyCount "107"]
[EventDate "2018.07.18"]
[EventType "swiss"]
[EventCountry "CZE"]
[SourceTitle "playchess.com"]
[Source "ChessBase"]
[SourceQuality "1"]
[TimeControl "900+10"]

1. e4 {[%emt 0:00:59]} d6 {[%emt 0:00:00]} 2. d4 {[%emt 0:00:01]} Nf6 {[%emt 0:00:00]} 3. Nc3 {[%emt 0:00:02]} Nbd7 {[%emt 0:00:06]} 4. Nf3 {[%emt 0:00:08]} e5 {[%emt 0:00:15]} 5. Bc4 {[%emt 0:00:07]} Be7 {[%emt 0:00:07]} 6. O-O {[%emt 0:00:05]} O-O {[%emt 0:00:05]} 7. Re1 {[%emt 0:00:02]} c6 {[%emt 0:00:20]} 8. a4 {[%emt 0:00:03]} a5 {[%emt 0:00:19]} 9. Bb3 {[%emt 0:00:08]} Qc7 {[%emt 0:00:26]} 10. h3 {[%emt 0:00:05]} b6 {[%emt 0:00:40]} 11. Be3 {[%emt 0:00:02]} Bb7 {[%emt 0:00:37]} 12. Qd2 {[%emt 0:00:12]} Rad8 {[%emt 0:00:07]} 13. Rad1 {[%emt 0:00:02]} exd4 {[%emt 0:01:07]} 14. Bxd4 {[%emt 0:00:01]} Nc5 {[%emt 0:00:14]} 15. Bxc5 {[%emt 0:00:12]} bxc5 {[%emt 0:00:30]} 16. Qf4 {[%emt 0:00:12]} Nd7 {[%emt 0:00:34]} 17. Ne2 {[%emt 0:02:37]} Ne5 {[%emt 0:00:08]} 18. Nxe5 {[%emt 0:00:15]} dxe5 {[%emt 0:00:03]} 19. Qf3 {[%emt 0:00:10]} Bc8 {[%emt 0:00:31]} 20. Ng3 {[%emt 0:00:12]} Bf6 {[%emt 0:01:04]} 21. Nf5 {[%emt 0:00:14]} Bxf5 {[%emt 0:00:31]} 22. Qxf5 {[%emt 0:00:02]} Rxd1 {[%emt 0:00:21]} 23. Rxd1 {[%emt 0:00:00]} Rd8 {[%emt 0:00:01]} 24. Qh5 {[%emt 0:01:14]} g6 {[%emt 0:00:43]} 25. Qe2 {[%emt 0:00:01]} Rxd1+ {[%emt 0:00:33]} 26. Qxd1 {[%emt 0:00:01]} Qd8 {[%emt 0:00:36]} 27. Qe2 {[%emt 0:00:01]} Kg7 {[%emt 0:00:15]} 28. g3 {[%emt 0:00:01]} Bg5 {[%emt 0:00:45]} 29. Qc4 {[%emt 0:00:20]} Qe7 {[%emt 0:00:41]} 30. Qc3 {[%emt 0:00:02]} Bc1 {[%emt 0:01:34]} 31. Qxa5 {[%emt 0:00:03]} Bxb2 {[%emt 0:00:09]} 32. Qd2 {[%emt 0:00:01]} c4 {[%emt 0:01:08]} 33. Bxc4 {[%emt 0:00:01]} Qc5 {[%emt 0:00:04]} 34. Bb3 {[%emt 0:00:21]} Qc3 {[%emt 0:02:20]} 35. Qd1 {[%emt 0:00:42]} h5 {[%emt 0:00:10]} 36. Kg2 {[%emt 0:00:07]} Qb4 {[%emt 0:01:08]} 37. Qf3 {[%emt 0:00:11]} f6 {[%emt 0:00:22]} 38. g4 {[%emt 0:00:26]} hxg4 {[%emt 0:00:05]} 39. hxg4 {[%emt 0:00:10]} Bc1 {[%emt 0:01:44]} 40. Qd3 {[%emt 0:00:01]} Kh6 {[%emt 0:00:13]} 41. Kf3 {[%emt 0:04:20]} Qe1 {[%emt 0:00:14]} 42. Kg2 {[%emt 0:00:39]} Kg5 {[%emt 0:00:23]} 43. Be6 {[%emt 0:01:45]} Bf4 {[%emt 0:00:29]} 44. Bd7 {[%emt 0:00:37]} c5 {[%emt 0:00:13]} 45. c3 {[%emt 0:00:09]} Qa1 {[%emt 0:00:22]} 46. Be8 {[%emt 0:00:22]} Qb2 {[%emt 0:00:04]} 47. a5 {[%emt 0:00:13]} Qb8 {[%emt 0:00:04]} 48. Qb5 {[%emt 0:01:09]} Qa8 {[%emt 0:00:12]} 49. Kf3 {[%emt 0:00:15]} f5 {[%emt 0:00:17]} 50. gxf5 {[%emt 0:00:11]} gxf5 {[%emt 0:00:02]} 51. Qc6 {[%emt 0:00:18]} fxe4+ {[%emt 0:00:18]} 52. Kxe4 {[%emt 0:00:01]} Qxa5 {[%emt 0:00:10]} 53. Qg6+ {[%emt 0:00:02]} Kh4 {[%emt 0:00:08]} 54. Qh5# 1-0

[Event "29th Czech Open-Rapid 2018"]
[Site "Pardubice"]
[Date "2018.07.18"]
[Round "2"]
[White "Zpevak, Pavel"]
[Black "Gabr, Mohsen"]
[Result "1-0"]
[ECO "E61"]
[WhiteElo "2330"]
[BlackElo "2287"]
[Annotator "NA"]
[PlyCount "68"]
[EventDate "2018.07.18"]
[EventType "swiss"]
[EventCountry "CZE"]
[SourceTitle "playchess.com"]
[Source "ChessBase"]
[SourceQuality "1"]
[TimeControl "900+10"]

1. d4 {[%emt 0:00:00]} Nf6 {[%emt 0:00:01]} 2. c4 {[%emt 0:00:00]} g6 {[%emt 0:00:01]} 3. Nc3 {[%emt 0:00:00]} Bg7 {[%emt 0:00:02]} 4. Bg5 {[%emt 0:00:01]} h6 {[%emt 0:00:03]} 5. Bh4 {[%emt 0:00:01]} d6 {[%emt 0:00:27]} 6. e3 {[%emt 0:00:01]} O-O {[%emt 0:00:05]} 7. Nf3 {[%emt 0:00:03]} c5 {[%emt 0:00:07]} 8. Be2 {[%emt 0:00:06]} Bg4 {[%emt 0:01:02]} 9. d5 {[%emt 0:00:22]} Na6 {[%emt 0:00:13]} 10. h3 {[%emt 0:00:43]} Bxf3 {[%emt 0:00:02]} 11. Bxf3 {[%emt 0:00:01]} Rb8 {[%emt 0:00:03]} 12. O-O {[%emt 0:00:44]} Nc7 {[%emt 0:00:01]} 13. Be2 {[%emt 0:00:11]} a6 {[%emt 0:00:01]} 14. a4 {[%emt 0:00:01]} b6 {[%emt 0:00:03]} 15. f4 Qd7 {[%emt 0:00:36]} 16. e4 {[%emt 0:00:55]} Nh7 {[%emt 0:00:44]} 17. Qd2 {[%emt 0:01:11]} Kh8 {[%emt 0:02:29]} 18. Bd3 {[%emt 0:00:41]} Rg8 {[%emt 0:00:26]} 19. e5 {[%emt 0:00:50]} Rbf8 {[%emt 0:02:47]} 20. Rae1 {[%emt 0:00:24]} g5 {[%emt 0:00:33]} 21. Qc2 {[%emt 0:02:10]} f5 {[%emt 0:01:33]} 22. exf6 {[%emt 0:01:02]} Nxf6 {[%emt 0:00:23]} 23. fxg5 {[%emt 0:00:08]} hxg5 {[%emt 0:00:02]} 24. Bxg5 {[%emt 0:00:09]} b5 {[%emt 0:03:41]} 25. Bf5 {[%emt 0:01:10]} Qe8 {[%emt 0:00:34]} 26. Bg6 {[%emt 0:00:08]} Qd7 {[%emt 0:00:03]} 27. Qf2 {[%emt 0:01:24]} Nh7 {[%emt 0:00:55]} 28. Qh4 {[%emt 0:01:20]} Bd4+ {[%emt 0:00:01]} 29. Kh2 {[%emt 0:00:37]} Rxg6 {[%emt 0:00:02]} 30. Rxf8+ {[%emt 0:00:11]} Kg7 {[%emt 0:00:01]} 31. Rxe7+ {[%emt 0:01:39]} Qxe7 {[%emt 0:00:01]} 32. Bxe7 {[%emt 0:00:00]} Nxf8 {[%emt 0:00:20]} 33. Bxd6 Bf6 {[%emt 0:01:31]} 34. Qe4 {[%emt 0:01:21]} b4 {[%emt 0:00:02]} 1-0

[Event "29th Czech Open-Rapid 2018"]
[Site "Pardubice"]
[Date "2018.07.18"]
[Round "2"]
[White "Bogdanov, Egor"]
[Black "Kolasa, Pjotrs"]
[Result "1-0"]
[ECO "C44"]
[WhiteElo "2328"]
[BlackElo "2021"]
[Annotator "NA"]
[PlyCount "57"]
[EventDate "2018.07.18"]
[EventType "swiss"]
[EventCountry "CZE"]
[SourceTitle "playchess.com"]
[Source "ChessBase"]
[SourceQuality "1"]
[TimeControl "900+10"]

1. e4 {[%emt 0:00:00]} e5 {[%emt 0:00:00]} 2. d4 {[%emt 0:00:00]} exd4 {[%emt 0:00:00]} 3. Nf3 {[%emt 0:00:00]} Nc6 {[%emt 0:00:13]} 4. c3 {[%emt 0:00:00]} d5 {[%emt 0:00:03]} 5. Bd3 {[%emt 0:00:00]} Bg4 {[%emt 0:02:42]} 6. O-O {[%emt 0:01:08]} Nf6 {[%emt 0:02:11]} 7. e5 {[%emt 0:01:14]} Ne4 {[%emt 0:00:08]} 8. cxd4 {[%emt 0:01:01]} Be7 {[%emt 0:00:39]} 9. Nc3 {[%emt 0:00:20]} O-O {[%emt 0:01:12]} 10. Nxe4 {[%emt 0:00:16]} dxe4 {[%emt 0:00:03]} 11. Bxe4 {[%emt 0:00:01]} Bxf3 {[%emt 0:01:34]} 12. Bxf3 {[%emt 0:00:02]} Nxd4 {[%emt 0:00:07]} 13. Bxb7 {[%emt 0:00:13]} Rb8 {[%emt 0:00:01]} 14. Be4 {[%emt 0:00:03]} c5 {[%emt 0:00:38]} 15. b3 {[%emt 0:00:36]} Qc7 {[%emt 0:00:08]} 16. Bf4 {[%emt 0:00:09]} Rfd8 {[%emt 0:00:46]} 17. Qg4 {[%emt 0:00:36]} Ne6 {[%emt 0:00:14]} 18. Rad1 {[%emt 0:00:10]} Rd4 {[%emt 0:00:45]} 19. Rxd4 {[%emt 0:00:35]} cxd4 {[%emt 0:00:03]} 20. Bd3 {[%emt 0:00:57]} Bf8 {[%emt 0:02:10]} 21. Bc4 {[%emt 0:00:11]} Re8 {[%emt 0:00:05]} 22. Bg3 {[%emt 0:00:05]} Bc5 {[%emt 0:01:33]} 23. Kh1 {[%emt 0:00:09]} Qc8 {[%emt 0:01:20]} 24. f4 {[%emt 0:00:14]} Nf8 {[%emt 0:00:08]} 25. f5 {[%emt 0:00:10]} Re7 {[%emt 0:01:51]} 26. Bh4 {[%emt 0:00:18]} Rxe5 {[%emt 0:00:11]} 27. Bf6 {[%emt 0:00:03]} Ng6 {[%emt 0:00:02]} 28. Bxf7+ {[%emt 0:00:40]} Kf8 {[%emt 0:00:17]} 29. Bxg7+ {[%emt 0:00:03]} 1-0

[Event "29th Czech Open-Rapid 2018"]
[Site "Pardubice"]
[Date "2018.07.18"]
[Round "2"]
[White "Sarkar, Justin"]
[Black "Gasanov, Eldar"]
[Result "0-1"]
[ECO "A81"]
[WhiteElo "2307"]
[BlackElo "2475"]
[Annotator "ChessBase"]
[PlyCount "48"]
[EventDate "2018.07.18"]
[EventType "swiss"]
[EventCountry "CZE"]
[SourceTitle "playchess.com"]
[Source "ChessBase"]
[SourceQuality "1"]
[TimeControl "900+10"]

1. d4 {[%emt 0:00:00]} f5 {[%emt 0:00:00]} 2. g3 {[%emt 0:00:00]} Nf6 {[%emt 0:00:04]} 3. Bg2 {[%emt 0:00:01]} d6 {[%emt 0:00:09]} 4. c4 {[%emt 0:00:24]} g6 {[%emt 0:00:05]} 5. Nc3 {[%emt 0:00:26]} Bg7 {[%emt 0:00:04]} 6. Nh3 {[%emt 0:00:35]} O-O {[%emt 0:00:20]} 7. d5 {[%emt 0:00:07]} Na6 {[%emt 0:00:47]} 8. Nf4 {[%emt 0:00:10]} Nc5 {[%emt 0:00:02]} 9. h4 {[%emt 0:01:59]} e5 {[%emt 0:00:52]} 10. dxe6 {[%emt 0:00:02]} Nxe6 {[%emt 0:00:05]} 11. Nxe6 {[%emt 0:01:53]} Bxe6 {[%emt 0:00:02]} 12. Bxb7 {[%emt 0:00:08]} Bxc4 {[%emt 0:00:26]} 13. h5 {[%emt 0:01:42]} Rb8 {[%emt 0:01:45]} 14. Bf3 {[%emt 0:00:32]} d5 {[%emt 0:00:22]} 15. hxg6 {[%emt 0:00:21]} hxg6 {[%emt 0:00:08]} 16. Bg5 {[%emt 0:01:21]} Rxb2 {[%emt 0:03:36]} 17. Nxd5 {[%emt 0:03:04]} Bxd5 {[%emt 0:03:48]} 18. Bxf6 {[%emt 0:00:02]} Bxf6 {[%emt 0:00:36]} 19. Qxd5+ {[%emt 0:00:26]} Qxd5 {[%emt 0:00:11]} 20. Bxd5+ {[%emt 0:00:01]} Kg7 {[%emt 0:00:01]} 21. Rc1 {[%emt 0:00:03]} Be5 {[%emt 0:00:34]} 22. Rh4 {[%emt 0:00:26]} Rd8 {[%emt 0:00:15]} 23. Bc4 {[%emt 0:02:39]} Rdd2 {[%emt 0:01:20]} 24. Rd1 {[%emt 0:01:25]} Bc3 {[%emt 0:00:10]} 0-1

[Event "29th Czech Open-Rapid 2018"]
[Site "Pardubice"]
[Date "2018.07.18"]
[Round "2"]
[White "Claridge-Hansen, William"]
[Black "Sinauridze, Simons"]
[Result "1-0"]
[ECO "A10"]
[WhiteElo "2291"]
[BlackElo "2088"]
[Annotator "NA"]
[PlyCount "71"]
[EventDate "2018.07.18"]
[EventType "swiss"]
[EventCountry "CZE"]
[SourceTitle "playchess.com"]
[Source "ChessBase"]
[SourceQuality "1"]
[TimeControl "900+10"]

1. c4 {[%emt 0:00:00]} g6 {[%emt 0:00:00]} 2. g3 {[%emt 0:00:00]} Bg7 {[%emt 0:00:00]} 3. Bg2 {[%emt 0:00:00]} d6 {[%emt 0:00:00]} 4. Nc3 {[%emt 0:00:00]} Nf6 {[%emt 0:00:00]} 5. e4 {[%emt 0:00:00]} O-O {[%emt 0:00:02]} 6. Nge2 {[%emt 0:00:00]} Nc6 {[%emt 0:00:10]} 7. O-O {[%emt 0:00:07]} e5 {[%emt 0:00:03]} 8. d3 {[%emt 0:00:05]} Bg4 {[%emt 0:00:02]} 9. f3 {[%emt 0:00:12]} Be6 {[%emt 0:00:13]} 10. Nd5 {[%emt 0:00:30]} Qd7 {[%emt 0:00:27]} 11. Be3 {[%emt 0:01:10]} a5 {[%emt 0:00:26]} 12. d4 {[%emt 0:01:58]} Bxd5 {[%emt 0:00:41]} 13. cxd5 {[%emt 0:00:20]} Nxd4 {[%emt 0:00:17]} 14. Nxd4 {[%emt 0:00:11]} exd4 {[%emt 0:00:03]} 15. Bxd4 {[%emt 0:00:03]} Rfe8 {[%emt 0:00:28]} 16. Qd3 {[%emt 0:00:39]} Re7 {[%emt 0:00:23]} 17. Rac1 {[%emt 0:01:49]} Ne8 {[%emt 0:01:27]} 18. Rfe1 {[%emt 0:01:55]} Qa4 {[%emt 0:00:21]} 19. Bxg7 {[%emt 0:00:28]} Nxg7 {[%emt 0:00:02]} 20. Qc4 {[%emt 0:00:49]} Qxc4 {[%emt 0:01:59]} 21. Rxc4 {[%emt 0:00:01]} Rf8 {[%emt 0:00:02]} 22. f4 {[%emt 0:00:34]} f6 {[%emt 0:00:18]} 23. Rc3 {[%emt 0:01:36]} Kf7 {[%emt 0:01:37]} 24. Kf2 {[%emt 0:00:24]} g5 {[%emt 0:00:16]} 25. Bf3 {[%emt 0:00:34]} h5 {[%emt 0:00:13]} 26. h4 {[%emt 0:00:23]} g4 {[%emt 0:00:30]} 27. Bd1 {[%emt 0:00:02]} Ra8 {[%emt 0:03:21]} 28. Ba4 {[%emt 0:00:25]} Ra6 {[%emt 0:00:13]} 29. Bb5 {[%emt 0:00:07]} Rb6 {[%emt 0:00:10]} 30. a4 {[%emt 0:00:01]} Ne8 {[%emt 0:01:35]} 31. f5 {[%emt 0:01:04]} Kf8 {[%emt 0:02:08]} 32. Ke3 {[%emt 0:00:19]} c6 {[%emt 0:00:36]} 33. dxc6 {[%emt 0:00:05]} bxc6 {[%emt 0:00:01]} 34. Rxc6 {[%emt 0:00:20]} Rxc6 {[%emt 0:00:30]} 35. Bxc6 {[%emt 0:00:01]} Nc7 {[%emt 0:00:01]} 36. Rd1 {[%emt 0:00:15]} 1-0